Cogmind - Beta 15 @@@ ROGUE MODE // 2025.05.28 @ 21:08:34 Player: Cog on my mind Result: Destroyed by S-43 Plague with Heavy Machine Gun Performance ------------- Evolutions (8) 4000 Regions Visited (26) 5200 Robots Destroyed (515) 2575 Value Destroyed (20340) 20340 Prototype IDs (98) 1960 Alien Tech Used (2) 400 Bonus (9870) 9870 TOTAL SCORE: 44345 Bonus ------- High Alert Combat Kills 2167 Follower Combat Kills 3107 Network Hubs Disabled 600 Registered with UFD 300 Met Optimus in HQ 500 Met Zhirov 300 Built Enhanced Grunts 300 A7 Reached Mainframe 300 Met R17 at Cetus 500 Met R17 at Research 2000 Friendly Fire -204 Cogmind --------- Core Integrity 0/1450 Matter 102/300 Energy 99/100 System Corruption 75% Temperature Cool (0) Movement Core (50) Location -2/Protoforge Parts ------- > --- POWER (2) -------- (None) > --- PROPULSION (6) --- (None) > --- UTILITY (12) ----- (None) > --- WEAPON (3) ------- (None) > --- INVENTORY (5) ---- (None) Peak State ------------ > --- POWER ------------ Cooled Fission Core Quantum Reactor > --- PROPULSION ------- Experimental Flexi-carbon Leg Improved Thunder Leg Enhanced Multireflex Exoskeleton Centrium Leg High-density Centrium Leg > --- UTILITY ---------- High-capacity Storage Unit Deep Structural Scanner Experimental Sensor Array Advanced Signal Interpreter Advanced Melee Analysis Suite Experimental Melee Analysis Suite Experimental Reaction Control System SHELL Armor Experimental Hardlight Generator Advanced Hacking Suite > --- WEAPON ----------- Enhanced Hardcell Cannon Plasma Lance Plasma Lance > --- INVENTORY -------- Quantum Reactor Biometal Leg Improved Thunder Leg Improved Thunder Leg Improved Thunder Leg Experimental Matter Compressor Advanced Sensor Array Microactuators Improved Force Booster Improved Phase Shifter Centrium Medium Armor Plating Authchip [Propulsion] A0-MCA's Component Scanner Mapping Drone Bay Transdimensional Reconstructor Smartbomb Launcher Z-bomb Delivery System Lance [Rating: 196] Favorites ----------- Power Cooled Fission Core Engine Ion Engine Power Core Cooled Fission Core Reactor Quantum Reactor Propulsion Improved Carbon-fiber Leg Treads Light Treads Leg Improved Carbon-fiber Leg Wheel Armored Wheel Hover Unit Aerolev Unit Utility High-capacity Storage Unit Device Experimental Sensor Array Storage High-capacity Storage Unit Processor Improved Signal Interpreter Hackware Improved Hacking Suite Protection Centrium Medium Armor Plating Weapon Heavy Assault Rifle Energy Gun Cooled Pulse Rifle Energy Cannon Ion Burst Cannon Ballistic Gun Heavy Assault Rifle Ballistic Cannon Flak Cannon Launcher Smartbomb Launcher Special Weapon Improved Remote Datajack Impact Weapon Power Maul Slashing Weapon Phasing Sabre Piercing Weapon Plasma Lance Build | -11 -10 -10 -9 -9 -8 -7 -7 -7 -7 -5 -5 -5 -5 -4 -4 -4 -4 -4 -4 -4 -4 -3 -3 -2 -2 -2 ------- Run | Yrd Mat Min Mat Min Mat Fac Sto Rec Scr Fac Upp Upp Zhi Pro Fac Was Fac Ext Cet Arc Hub Res Tes Res Qua Frg Slots Evolved 16 | . . . 2 . 2 2 . . . 4 . . . . 2 . . . . . . 2 . 2 . . Power 1 | . . . . . . . . . . . . . . . . . . . . . . 1 . . . . Propulsion 4 | . . . 1 . 1 1 . . . 1 . . . . . . . . . . . . . . . . Utility 10 | . . . 1 . . 1 . . . 3 . . . . 2 . . . . . . 1 . 2 . . Weapon 1 | . . . . . 1 . . . . . . . . . . . . . . . . . . . . . Parts Attached 303 | 7 4 5 19 5 15 36 19 2 7 36 2 4 3 4 9 1 18 14 6 5 13 23 12 14 19 1 Power 30 | 1 . 1 1 2 2 5 1 1 . 2 . . . . . . 1 . 1 . . 2 . 3 6 1 Engine 10 | 1 . 1 1 2 1 3 1 . . . . . . . . . . . . . . . . . . . Core 7 | . . . . . 1 2 . 1 . 2 . . . . . . . . . . . 1 . . . . Reactor 13 | . . . . . . . . . . . . . . . . . 1 . 1 . . 1 . 3 6 1 Propulsion 77 | 2 1 1 7 2 4 10 10 . . 13 1 . 1 . 1 . 2 . . . 7 3 . 5 7 . Treads 25 | 2 1 1 7 1 4 9 . . . . . . . . . . . . . . . . . . . . Leg 49 | . . . . 1 . . 10 . . 12 1 . . . 1 . 2 . . . 7 3 . 5 7 . Wheel 1 | . . . . . . . . . . 1 . . . . . . . . . . . . . . . . Hover 2 | . . . . . . 1 . . . . . . 1 . . . . . . . . . . . . . Flight . | . . . . . . . . . . . . . . . . . . . . . . . . . . . Utility 116 | 2 1 1 7 . 3 5 3 . 2 12 . 3 2 2 5 1 14 8 3 5 5 15 10 3 4 . Device 64 | 1 . 1 1 . 1 2 . . 1 10 . 2 1 . 4 1 7 4 . 2 3 13 5 2 3 . Storage 6 | 1 1 . 1 . . . . . . . . . . . . . . . . . 2 . 1 . . . Processor 12 | . . . . . . 2 1 . . . . . . 1 1 . 3 . . . . 1 2 1 . . Hackware 10 | . . . . . . . . . 1 1 . 1 . 1 . . 1 . . 3 . . 1 . 1 . Protection 24 | . . . 5 . 2 1 2 . . 1 . . 1 . . . 3 4 3 . . 1 1 . . . Artifact . | . . . . . . . . . . . . . . . . . . . . . . . . . . . Weapon 80 | 2 2 2 4 1 6 16 5 1 5 9 1 1 . 2 3 . 1 6 2 . 1 3 2 3 2 . Energy Gun 13 | . . . . . 1 5 1 . 1 1 . . . . . . . . 1 . . . 1 2 . . Energy Cannon 6 | . . . . . . 2 1 . . 2 . . . . . . . 1 . . . . . . . . Ballistic Gun 26 | 2 2 1 4 1 3 3 2 . 3 1 1 1 . . . . . . 1 . . 1 . . . . Ballistic Cannon 13 | . . . . . 1 3 . . . 4 . . . 1 . . . 1 . . . . . 1 2 . Launcher 9 | . . 1 . . 1 2 1 1 . 1 . . . . 1 . . . . . . . 1 . . . Special Weapon 2 | . . . . . . . . . 1 . . . . . 1 . . . . . . . . . . . Impact Weapon 3 | . . . . . . 1 . . . . . . . . . . . 2 . . . . . . . . Slashing Weapon 4 | . . . . . . . . . . . . . . 1 1 . . 2 . . . . . . . . Piercing Weapon 4 | . . . . . . . . . . . . . . . . . 1 . . . 1 2 . . . . Special Melee Weapon . | . . . . . . . . . . . . . . . . . . . . . . . . . . . Unidentified Prototypes 48 | . . . 1 . 1 8 3 1 . 5 . . 4 . 2 1 3 . 3 . 1 5 8 1 1 . Corrupted Parts 3 | . . 1 . . . . . . 1 . . . . 1 . . . . . . . . . . . . System Corruption 7 | . . 3 . . . . . . 1 . . . . 3 . . . . . . . . . . . . Parts Lost 92 | . . 1 3 1 6 7 6 . . 6 1 . . . 2 . 3 8 5 . 1 . . 13 22 7 Power 14 | . . 1 . . 1 . . . . . . . . . . . . . . . . . . 3 7 2 Propulsion 26 | . . . . 1 2 6 4 . . 3 . . . . . . . . . . 1 . . 1 5 3 Utility 39 | . . . 2 . 3 1 2 . . 2 1 . . . 2 . 3 6 4 . . . . 7 5 1 Weapon 13 | . . . 1 . . . . . . 1 . . . . . . . 2 1 . . . . 2 5 1 Highest Loss Streak 6 | . . 1 2 1 2 3 2 . . 2 1 . . . 1 . 1 4 4 . 1 . . 4 5 6 To Critical Strikes 4 | . . . . . . . . . . . . . . . 1 . . . 1 . . . . . 2 . Average Backups 17 | . 8 14 19 18 18 18 18 17 16 17 18 19 19 19 18 19 17 18 18 19 18 17 17 16 14 . Power . | . . . 1 1 . 1 1 . . . 1 1 1 1 1 1 1 1 1 2 2 1 1 . 1 . Propulsion 2 | . 1 2 3 3 2 2 3 . . 1 2 3 3 2 2 2 3 5 6 5 3 3 2 4 3 . Utility 8 | . 2 4 6 6 7 7 8 9 10 11 13 12 12 13 11 12 9 7 7 7 9 10 11 7 5 . Weapon 4 | . 3 6 7 7 7 7 5 7 5 3 2 2 2 1 2 3 2 2 2 3 2 2 1 3 2 . Tool/Special . | . . . . . . . . . . . . . . . . . . . . . . . . . . . Unused Backups 64 | . 5 2 5 . 7 6 3 2 3 4 . 1 1 2 1 . 3 . . . 4 2 4 2 7 . Power 2 | . . 1 . . . . 1 . . . . . . . . . . . . . . . . . . . Propulsion 15 | . 1 . 1 . 1 3 . 1 . 1 . . . 1 . . 1 . . . 2 . 1 1 1 . Utility 24 | . 1 . 1 . 3 . . 1 3 3 . . . 1 . . 2 . . . 1 2 2 . 4 . Weapon 20 | . 3 1 3 . 3 3 2 . . . . 1 . . 1 . . . . . 1 . 1 1 . . Tool/Special 3 | . . . . . . . . . . . . . 1 . . . . . . . . . . . 2 . Average Slot Usage (%) 91 | . 100 99 99 99 99 96 98 98 95 95 88 91 81 88 87 80 74 75 78 82 92 99 88 83 76 46 Engine 2 | . 14 13 11 11 6 1 7 . . . . . . . . . . . . . . . . . . . Core 2 | . . . . . 2 5 . 6 6 5 5 5 5 5 5 5 2 . . . . 4 4 3 . . Reactor 1 | . . . . . . . . . . . . . . . . . 2 5 5 5 5 4 4 4 6 5 Treads 10 | . 28 28 33 32 35 35 2 . . . . . . . . . . . . . . . . . . . Leg 19 | . . . . . . . 35 38 38 33 35 35 34 35 30 26 18 15 15 15 24 28 25 20 23 19 Device 10 | . 14 14 11 11 8 6 2 . . 9 5 8 10 6 17 17 15 10 12 5 4 18 16 17 14 3 Storage 6 | . 14 14 11 11 9 7 7 7 6 5 5 5 5 5 5 5 5 5 5 5 5 4 4 4 3 . Processor 8 | . . . . . . 12 15 15 15 11 5 5 5 9 6 5 8 10 10 10 10 9 7 11 8 7 Hackware 3 | . . . . . . . . . . 7 5 5 5 5 5 5 5 5 . 12 15 6 4 1 3 . Protection 5 | . . . 10 11 8 2 4 7 6 . 5 5 5 5 5 5 5 12 13 10 9 6 3 6 3 3 Energy Gun 2 | . . . . . . 12 14 6 6 4 . . . . . . . . . . . . . . 3 . Energy Cannon 1 | . . . . . . . 3 6 5 3 5 . . . . . . . . . . . . . . . Ballistic Gun 7 | . 28 27 21 21 18 6 3 6 7 3 3 10 . 5 . . . . . . . . . . . . Ballistic Cannon 1 | . . . . . 7 3 . . . 3 6 4 . . . . . . . . . . . . 3 3 Slashing Weapon 1 | . . . . . . . . . . . . . . . 5 5 9 6 8 5 5 3 . . . . Piercing Weapon 1 | . . . . . . . . . . . . . . . . . . . 5 5 9 9 13 11 2 . Peak Build Rating 196 | 7 12 15 22 18 27 49 60 60 61 102 103 104 104 105 131 132 133 131 137 136 140 155 183 196 189 116 Average Rating 85 | 5 9 12 19 17 25 39 56 59 56 87 99 101 98 102 115 125 127 123 127 134 136 147 170 185 161 102 On Entrance 84 | . 7 12 15 18 17 27 45 59 44 61 98 100 98 104 97 122 122 128 124 118 134 137 155 175 188 81 Naked Turns 27 | . . . . . . . . . . . . . . . . . . . . . . . . . . 27 Heaviest Build 151 | 14 32 32 61 61 69 69 87 87 84 103 104 100 91 91 96 96 96 106 98 88 89 119 133 148 151 72 Greatest Support 178 | 40 43 46 69 63 86 106 103 90 90 116 116 116 116 116 126 126 126 118 118 118 156 160 160 168 178 148 Greatest Overweight (x) 28 | . . . . . . 1 1 . . 1 . . . . . . . . . 28 . . . . 1 . Average Overweight (x) . | . . . . . . . . . . . . . . . . . . . . 3 . . . . . . Largest Inventory Capacity 20 | 8 15 15 20 20 20 20 20 20 20 20 20 20 20 20 20 20 20 20 20 20 20 20 20 20 20 5 Average Capacity 19 | 7 12 15 19 20 20 20 20 20 18 20 20 20 20 20 20 20 20 20 20 20 20 20 20 20 18 5 Most Carried 20 | 1 15 15 20 19 20 20 20 20 20 20 20 20 20 20 20 20 20 20 20 20 20 20 20 20 20 2 Average Carried 18 | . 8 14 19 18 18 19 19 19 17 19 19 19 19 19 19 20 18 19 19 19 19 19 19 17 15 . Final Capacity 20 | 8 15 15 20 20 20 20 20 20 20 20 20 20 20 20 20 20 20 20 20 20 20 20 20 20 5 5 Final Carried 20 | 1 15 15 18 18 20 19 19 20 20 20 20 19 19 19 20 20 19 19 20 20 20 20 20 17 5 . Class Distribution -------------------- 19% | Skirmisher 19% | Mutant 13% | Gunner 13% | Scavenger-Gladiator 7% | Gladiator 7% | Commander-Gladiator 3% | Tank 3% | Scavenger-Assassin 3% | Scavenger-Mutant Dominant Class ---------------- Mutant | -10/Materials Mutant | -10/Mines Mutant | -9/Materials Scavenger-Mutant | -9/Mines Tank | -8/Materials Skirmisher | -7/Factory Gunner | -7/Storage Gunner | -7/Recycling Gunner | -7/Scraptown Skirmisher | -5/Factory Commander-Skirmisher | -5/Upper Caves Skirmisher | -5/Upper Caves Skirmisher | -5/Zhirov Skirmisher | -4/Proximity Caves Scavenger-Assassin | -4/Factory Gladiator | -4/Waste Gladiator | -4/Factory Commander-Gladiator | -4/Extension Commander-Gladiator | -4/Cetus Commander-Gladiator | -4/Archives Scavenger-Gladiator | -4/Hub_04(d) Scavenger-Gladiator | -3/Research Scavenger-Gladiator | -3/Testing Scavenger-Gladiator | -2/Research Scavenger-Assassin | -2/Quarantine Mutant | -2/Protoforge Resources | -11 -10 -10 -9 -9 -8 -7 -7 -7 -7 -5 -5 -5 -5 -4 -4 -4 -4 -4 -4 -4 -4 -3 -3 -2 -2 -2 ----------- Run | Yrd Mat Min Mat Min Mat Fac Sto Rec Scr Fac Upp Upp Zhi Pro Fac Was Fac Ext Cet Arc Hub Res Tes Res Qua Frg Matter Collected 13336 | 220 494 370 1217 287 1415 1637 746 98 200 2095 250 135 . 274 249 . 475 258 145 78 165 374 794 500 860 . Remotely 506 | . . . . . . . . . . 399 . . . 37 60 . . 10 . . . . . . . . Salvage Created 23329 | 15 828 214 1605 278 1604 2041 2231 446 . 2772 321 . . 81 555 . 1439 780 150 388 398 1213 1691 3596 683 . Parts 1139 | 4 54 18 124 20 79 68 94 17 . 101 13 . . 8 46 . 71 29 3 27 22 47 75 179 40 . Haulers Intercepted 32 | . 1 . 5 . 4 5 5 . . 6 . . . . . . 1 . . . 1 4 . . . . Recyclers Shooed 15 | 1 2 1 . . 2 3 1 . . 3 . . . . . . . 1 . . . . . 1 . . Parts Field Recycled . | . . . . . . . . . . . . . . . . . . . . . . . . . . . Retrieved Matter . | . . . . . . . . . . . . . . . . . . . . . . . . . . . Parts Self-Destructed 42 | . . . . . . . . . . . 28 7 . 7 . . . . . . . . . . . . Prevented . | . . . . . . . . . . . . . . . . . . . . . . . . . . . Kills | -11 -10 -10 -9 -9 -8 -7 -7 -7 -7 -5 -5 -5 -5 -4 -4 -4 -4 -4 -4 -4 -4 -3 -3 -2 -2 -2 ------- Run | Yrd Mat Min Mat Min Mat Fac Sto Rec Scr Fac Upp Upp Zhi Pro Fac Was Fac Ext Cet Arc Hub Res Tes Res Qua Frg Combat Hostiles Destroyed 362 | . 18 14 37 8 35 26 39 3 . 36 4 . . 5 12 . 17 10 2 1 3 12 25 44 11 . Melee 119 | . . . . . . . . . . . . . . . 6 . 16 7 2 1 3 12 24 41 7 . Guns 122 | . 18 5 23 3 20 14 19 1 . 13 2 . . . . . . . . . . . 1 3 . . Cannons 53 | . . . . . 8 12 10 2 . 14 2 . . . . . . 1 . . . . . . 4 . AOE 65 | . . 9 14 5 7 . 10 . . 8 . . . 5 6 . 1 . . . . . . . . . Classes Destroyed 23 | 1 6 1 2 1 5 1 . . . . 1 . . . . . . . . . 1 2 2 . . . Worker 28 | . 2 . 3 . 3 5 4 . . 4 . . . . 1 . 1 . . . 2 . 2 . 1 . Builder 19 | . . . . . 3 . 4 . . 3 . . . . 2 . 1 2 . . . 1 1 2 . . Tunneler 10 | 1 . 3 1 1 . . . . . . . . . . . . . . . . 3 1 . . . . Hauler 32 | . 1 . 5 . 4 5 5 . . 6 . . . . . . 1 . . . 1 4 . . . . Recycler 29 | . 1 1 . 1 1 9 3 3 . 5 . . . . 1 . 3 . . . . . . 1 . . Mechanic 2 | . . . . . 1 1 . . . . . . . . . . . . . . . . . . . . Operator 18 | . . . 3 . 1 1 . . . 1 . . . . . . 1 1 . 9 . . . 1 . . Watcher 21 | . 3 . 4 . 3 2 2 . . 4 . . . . . . 1 . . . . . . 2 . . Swarmer 78 | . 6 6 14 3 3 3 3 . . 10 . . . 4 7 . 5 . . . . 4 6 4 . . Grunt 141 | . 12 . 14 4 19 11 21 . . 11 4 . . . 2 . 1 5 . . . 3 16 17 1 . Brawler 6 | . . . . . 2 1 . . . 2 . . . . . . . . . . . . . 1 . . Duelist 4 | . . . . 1 . 1 1 . . 1 . . . . . . . . . . . . . . . . Protector 1 | . . . . . 1 . . . . . . . . . . . . . . . . . . . . . Researcher 1 | . . . . . . . . . . . . . . . . . . . . . . . 1 . . . Sentry 49 | . . . 9 . 7 4 11 3 . 4 . . . . . . 1 4 . 1 1 1 . 3 . . Demolisher 2 | . . . . . . . . . . . . . . . . . . . . . . 2 . . . . Specialist 3 | . . . . . . . . . . . . . . . . . . . . . . . 3 . . . Hunter 19 | . . . . . 3 1 1 . . 2 . . . . . . 3 1 . . 1 1 . 4 2 . Programmer 47 | . . . . . . 5 2 . . 6 . . . 1 3 . 7 . . . . . . 15 8 . Heavy 1 | . . . . . . . . . . . . . . . . . . . . . 1 . . . . . Cetus Guard 2 | . . . . . . . . . . . . . . . . . . . 2 . . . . . . . Striker 1 | . . . . . . . . . . . . . . . . . . . . . . 1 . . . . Scrapoid 1 | . . . . . . . . . . . 1 . . . . . . . . . . . . . . . Assembled 8 | . . 8 . . . . . . . . . . . . . . . . . . . . . . . . Best Kill Streak 12 | 1 4 7 9 3 7 12 9 2 . 8 2 . . 4 6 . 5 2 1 5 3 3 6 9 2 . Combat Bots Only 9 | . 4 7 7 3 5 5 8 2 . 5 2 . . 4 5 . 4 2 1 1 1 3 6 9 2 . Max Kills in Single Turn 7 | 1 1 3 5 2 3 2 2 2 . 7 1 . . 3 6 . 2 1 1 1 1 1 1 1 1 . Gunslinging 1 | . . . 1 . . . . . . . . . . . . . . . . . . . . . . . Exploded 5 | . . 3 5 2 2 . 2 . . 4 . . . 3 5 . 1 . . . . . . . . . Melee 2 | . . . . . . . . . . . . . . . 1 . 2 1 1 1 1 1 1 1 1 . Uniques/NPCs Destroyed . | . . . . . . . . . . . . . . . . . . . . . . . . . . . Combat | -11 -10 -10 -9 -9 -8 -7 -7 -7 -7 -5 -5 -5 -5 -4 -4 -4 -4 -4 -4 -4 -4 -3 -3 -2 -2 -2 -------- Run | Yrd Mat Min Mat Min Mat Fac Sto Rec Scr Fac Upp Upp Zhi Pro Fac Was Fac Ext Cet Arc Hub Res Tes Res Qua Frg Hostile Shots Fired 3357 | . 46 29 136 27 120 249 384 18 . 189 26 . . . 110 1 138 113 79 4 11 109 270 477 651 170 Missed 1262 | . 8 9 46 10 45 80 136 5 . 49 8 . . . 35 . 56 25 37 2 4 46 136 162 299 64 Deflected 62 | . . . . . . . . . . . . . . . 3 . 9 2 . . . . 6 39 3 . Hits 2095 | . 38 20 90 17 75 169 248 13 . 140 18 . . . 75 1 82 88 42 2 7 63 134 315 352 106 Melee 23 | . . 1 . 2 1 3 2 . . 4 . . . . . 1 . . . . . 4 . 5 . . Projectile 2072 | . 38 19 90 15 74 166 246 13 . 136 18 . . . 75 . 82 88 42 2 7 59 134 310 352 106 AOE 3 | . . . . . . . . . . . . . . . . . 3 . . . . . . . . . Critical Strikes 102 | . . . 4 1 5 3 3 . . 8 1 . . . 5 1 6 5 5 . . 6 4 13 29 3 Part Disruptions 6 | . . . . . . . . . . 1 . . . . . . . . . . . . . . 5 . Damage Taken 33525 | . 370 324 1288 320 1196 2175 2280 78 . 2934 353 . . . 1002 27 1213 2181 1241 60 366 700 950 4706 7085 2676 Core 3132 | . 21 65 169 43 70 150 262 . . 401 18 . . . 111 . 120 186 105 . . 129 28 239 364 651 Absorbed by Shields 4989 | . . . . . . . . . . . . . . . 370 9 233 150 40 . . 731 1013 1763 680 . Ignored by Resistances 444 | . . . . . . . 196 18 . . . . . . . . 123 107 . . . . . . . . Regen/Repaired (Parts) 6216 | . . . . . . 11 91 . . 156 . . . . . . . . . . . . 1045 1843 1981 1089 Core Remaining (%) 67 | 100 . 65 . 47 87 . . . 41 . . . . 58 . . . . . . 54 . 87 . . . Volleys Fired 792 | 2 56 32 108 25 100 114 108 6 . 148 10 4 . 6 2 . 1 9 1 . . 1 . 15 41 3 Largest 3 | 2 2 2 2 2 3 3 3 3 . 3 3 3 . 1 1 . 1 2 1 . . 1 . 1 3 1 Hottest 240 | 40 46 46 48 46 85 116 148 148 . 205 188 119 . 46 46 . 46 160 240 . . 35 . 58 174 58 Shots Fired 1849 | 4 112 55 211 41 285 315 275 19 . 354 33 10 . 7 2 . 1 17 1 . . 1 . 15 86 5 Gun 1236 | 4 112 46 205 32 197 219 222 13 . 173 5 6 . . . . . . 1 . . 1 . . . . Cannon 560 | . . . . . 83 96 40 6 . 179 28 4 . 1 . . . 17 . . . . . 15 86 5 Launcher 52 | . . 9 6 9 5 . 13 . . 2 . . . 6 1 . 1 . . . . . . . . . Special 1 | . . . . . . . . . . . . . . . 1 . . . . . . . . . . . Kinetic 1288 | 4 112 46 205 32 280 235 50 6 . 171 23 8 . 1 . . . 8 . . . 1 . 15 86 5 Thermal 505 | . . . . . . 77 212 13 . 181 10 2 . . . . . 9 1 . . . . . . . Explosive 52 | . . 9 6 9 5 . 13 . . 2 . . . 6 1 . 1 . . . . . . . . . Electromagnetic 3 | . . . . . . 3 . . . . . . . . . . . . . . . . . . . . Robot Hit Streak 33 | 3 18 19 28 5 18 22 33 22 . 24 8 9 . . 4 . . 11 . . . 12 . 1 6 . Robot Miss Streak 10 | . 5 4 8 3 10 7 5 2 . 6 3 3 . . . . . 1 . . . . . 1 10 3 Penetration Max 2 | . . . . . . . . . . 2 . . . . . . . . . . . . . . . . Secondary Targets 7 | . 1 . 1 . . 1 2 . . 2 . . . . . . . . . . . . . . . . Max Gunslinging Chain 1 | . 1 . 1 . . 1 1 . . 1 . . . . . . . . . . . . . . . . Shots Hit Robots 1646 | 3 62 20 140 25 194 248 185 14 . 223 18 4 . . 25 . 45 52 13 15 22 63 72 147 56 . Core Hits 870 | 1 29 26 73 15 144 134 100 13 . 94 8 . . 9 14 . 23 11 6 8 10 27 37 69 17 2 Critical Kills 6 | . . . . . . . . . . 2 4 . . . . . . . . . . . . . . . Critical Parts Destroyed 7 | . . . . . 1 . . . . 3 2 . . . . . . 1 . . . . . . . . Critical Strikes 93 | . . . 1 . 1 5 6 . . 7 7 1 . . 7 . 7 7 . 1 3 8 9 18 5 . Burn 11 | . . . . . . 5 6 . . . . . . . . . . . . . . . . . . . Meltdown 1 | . . . . . . . . . . 1 . . . . . . . . . . . . . . . . Destroy 12 | . . . 1 . 1 . . . . 3 6 1 . . . . . . . . . . . . . . Blast 4 | . . . . . . . . . . 2 1 . . . . . . . . . . . . . 1 . Smash 2 | . . . . . . . . . . 1 . . . . . . . 1 . . . . . . . . Sever 23 | . . . . . . . . . . . . . . . 7 . 7 6 . . . 3 . . . . Impale 40 | . . . . . . . . . . . . . . . . . . . . 1 3 5 9 18 4 . Melee Attacks 713 | . . . . . . 4 . . . 20 . . . . 41 . 78 44 14 19 33 80 111 213 56 . Impact 36 | . . . . . . 4 . . . 20 . . . . . . . 9 . 3 . . . . . . Slashing 187 | . . . . . . . . . . . . . . . 41 . 78 30 3 2 7 26 . . . . Piercing 490 | . . . . . . . . . . . . . . . . . . 5 11 14 26 54 111 213 56 . Sneak Attacks 61 | . . . . . . 3 . . . 4 . . . . 4 . 9 4 . 9 8 8 6 5 1 . Combat Hostiles 2 | . . . . . . . . . . . . . . . 1 . . . . . . . 1 . . . Follow-up Attacks 80 | . . . . . . . . . . . . . . . 1 . 7 3 3 2 5 16 17 26 . . Martial Strikes 62 | . . . . . . . . . . . . . . . 2 . 13 2 . . . . 4 40 1 . Damage Inflicted 58211 | 32 996 802 2907 684 4010 4730 6040 471 . 8104 441 42 . 615 1913 . 3790 2845 520 999 1181 2964 3648 7526 2879 72 Guns 14503 | 32 991 321 2155 325 2190 2723 2994 168 . 2537 22 22 . . . . . . . . . 23 . . . . Cannons 10675 | . . . . . 1067 1647 1384 273 . 3708 419 20 . . . . . 636 . . . . . 49 1472 . Explosions 6317 | . . 481 745 335 750 44 1624 . . 1182 . . . 615 366 . 175 . . . . . . . . . Melee 26417 | . . . . . . 249 . . . 624 . . . . 1547 . 3615 2209 520 999 1181 2941 3648 7477 1407 . Ramming 299 | . 5 . 7 24 3 67 38 30 . 53 . . . . . . . . . . . . . . . 72 Kinetic 16034 | 32 991 321 2155 325 3257 3224 569 73 . 2970 219 42 . . . . . 312 . . . 23 . 49 1472 . Thermal 9281 | . . . . . . 1118 3809 368 . 3440 222 . . . . . . 324 . . . . . . . . Explosive 6108 | . . 481 745 335 750 . 1624 . . 1017 . . . 615 366 . 175 . . . . . . . . . Electromagnetic 72 | . . . . . . 72 . . . . . . . . . . . . . . . . . . . . Impact 1304 | . . . . . . 249 . . . 624 . . . . . . . 379 . 52 . . . . . . Slashing 8169 | . . . . . . . . . . . . . . . 1547 . 3615 1658 133 112 176 928 . . . . Piercing 16944 | . . . . . . . . . . . . . . . . . . 172 387 835 1005 2013 3648 7477 1407 . Highest Corruption 75 | . 2 5 1 1 3 8 6 6 1 19 18 15 15 18 1 12 12 10 10 10 . . 1 30 75 75 Average Corruption 9 | . 2 2 1 1 1 4 4 6 1 5 15 15 15 15 1 5 9 9 10 7 . . 1 11 41 75 Corruption Purged 30 | . . . . . . 5 . . . 1 3 . . . . . 5 1 . 10 . . . 1 4 . Corruption Blocked . | . . . . . . . . . . . . . . . . . . . . . . . . . . . Effects 598 | . 6 12 10 6 4 39 31 20 . 65 34 36 10 31 1 . 70 45 15 8 . . 4 42 71 38 Message Errors 144 | . 2 1 3 2 1 12 2 6 . 11 10 16 5 8 . . 19 10 4 2 . . . 10 14 6 Matter Fused 139 | . . 5 5 2 1 7 11 5 . 23 7 4 . 4 1 . 16 7 7 2 . . 1 11 14 6 Heat Flow Errors 72 | . . 3 . . . 6 5 1 . 7 3 3 1 3 . . 9 8 3 1 . . 2 8 7 2 Energy Discharges 68 | . 1 . 1 . 2 1 3 3 . 2 5 5 . 7 . . 9 11 . 1 . . . 2 9 6 Parts Rejected 9 | . . . . . . . . . . 3 1 . . . . . 1 . . . . . . 1 2 1 Parts Fused 6 | . . . . 1 . . . . . 2 1 . . . . . 1 1 . . . . . . . . Data Loss (minor) 63 | . 2 2 . 1 . 5 5 2 . 5 2 4 4 4 . . 8 4 . 2 . . . 6 7 . Data Loss (major) 17 | . . . . . . 2 . 1 . 2 1 . . 3 . . 5 1 1 . . . . . 1 . Misfires 19 | . . . 1 . . 3 1 1 . 4 3 2 . 1 . . . . . . . . . . 1 2 Alerts 22 | . 1 1 . . . 3 2 1 . 2 1 2 . 1 . . 2 1 . . . . 1 2 1 1 Misdirections 24 | . . . . . . . . . . . . . . . . . . 2 . . . . . 2 6 14 Weapon Failures 15 | . . . . . . . 2 . . 4 . . . . . . . . . . . . . . 9 . Overload Shots 32 | . . . . . . . 14 . . 17 . . . . . . . . 1 . . . . . . . Effects 3 | . . . . . . . 2 . . 1 . . . . . . . . . . . . . . . . Energy Bleed 2 | . . . . . . . 1 . . 1 . . . . . . . . . . . . . . . . Short Circuit 1 | . . . . . . . 1 . . . . . . . . . . . . . . . . . . . Overflow Damage 3961 | . . 6 17 11 . 89 96 . . 435 . . . 23 367 . 691 451 . 219 117 174 310 510 445 . Projectiles 457 | . . . . . . 1 11 . . 261 . . . . . . . . . . . . . . 184 . Explosions 188 | . . 6 17 11 . . 85 . . 38 . . . 23 . . 8 . . . . . . . . . Melee 3316 | . . . . . . 88 . . . 136 . . . . 367 . 683 451 . 219 117 174 310 510 261 . Knockbacks 102 | . . . . . 29 38 . . . 15 1 . . . . . . 1 . . . . . . 18 . Impact 7 | . . . . . . 3 . . . 3 . . . . . . . 1 . . . . . . . . Kinetic 91 | . . . . . 29 35 . . . 12 1 . . . . . . . . . . . . . 14 . Secondary 4 | . . . . . . . . . . . . . . . . . . . . . . . . . 4 . Self-Inflicted Damage 564 | . . 97 163 102 . . 157 . . 45 . . . . . . . . . . . . . . . . Shots 12 | . . 2 4 3 . . 2 . . 1 . . . . . . . . . . . . . . . . Rammed 8 | . 1 . 1 1 1 4 . . . . . . . . . . . . . . . . . . . . Targets Rammed 32 | . 1 . 1 1 1 6 4 1 . 5 . . . . . . . . . . . . . . . 12 Kicked 22 | . . . . . . . 4 1 . 5 . . . . . . . . . . . . . . . 12 Crushed 2 | . . . . . . 2 . . . . . . . . . . . . . . . . . . . . Highest Temperature 474 | . 4 148 26 18 136 309 381 165 . 386 324 222 190 136 6 . 274 474 243 187 . 1 279 279 184 194 Average Temperature 80 | . 1 69 5 7 33 57 114 70 . 85 123 81 107 65 3 . 108 162 99 97 . 1 111 87 84 100 Received Heat Transfer 4544 | . 126 . 420 87 513 597 750 24 . 369 36 . . . 36 . 36 380 180 9 51 133 123 310 67 297 Effects 11 | . . . . . . 3 1 . . 4 . . . . . . . 3 . . . . . . . . Shutdowns 1 | . . . . . . . 1 . . . . . . . . . . . . . . . . . . . Energy Bleed 2 | . . . . . . . . . . 1 . . . . . . . 1 . . . . . . . . Interference 8 | . . . . . . 3 . . . 3 . . . . . . . 2 . . . . . . . . Siege Activations . | . . . . . . . . . . . . . . . . . . . . . . . . . . . Martial Activations 39 | . . . . . . . . . . . . . . . 1 . 10 8 1 . . . 4 14 1 . Total Turns 905 | . . . . . . . . . . . . . . . 33 . 182 103 8 . . . 56 471 52 . Longest Duration 85 | . . . . . . . . . . . . . . . 33 . 50 25 8 . . . 28 85 52 . Shielding Activations . | . . . . . . . . . . . . . . . . . . . . . . . . . . . Robots Disrupted . | . . . . . . . . . . . . . . . . . . . . . . . . . . . Combat Hostiles . | . . . . . . . . . . . . . . . . . . . . . . . . . . . Robots Corrupted 8 | . . . . . . 1 . . . 3 . . . . . . . 3 . 1 . . . . . . Combat Hostiles 3 | . . . . . . . . . . 1 . . . . . . . 2 . . . . . . . . Parts Fried 12 | . . . . . . 1 . . . 5 . . . . . . . 3 . 3 . . . . . . Impact Corruptions 16 | . . . . . . 3 . . . 6 . . . . . . . 5 . 1 . . . . 1 . Robots Melted 1 | . . . . . . . . . . 1 . . . . . . . . . . . . . . . . Combat Hostiles . | . . . . . . . . . . . . . . . . . . . . . . . . . . . Parts Melted 28 | . . . . . . 10 10 1 . 5 . . . . . . 1 . . . . . 1 . . . Heat Transferred 13461 | . . . . . . 2492 6502 510 . 3624 . . . . . . . 333 . . . . . . . . Parts Sabotaged . | . . . . . . . . . . . . . . . . . . . . . . . . . . . Parts Stolen . | . . . . . . . . . . . . . . . . . . . . . . . . . . . Parts Stripped . | . . . . . . . . . . . . . . . . . . . . . . . . . . . Power Chain Reactions 1 | . . . . . . 1 . . . . . . . . . . . . . . . . . . . . Alert | -11 -10 -10 -9 -9 -8 -7 -7 -7 -7 -5 -5 -5 -5 -4 -4 -4 -4 -4 -4 -4 -4 -3 -3 -2 -2 -2 ------- Run | Yrd Mat Min Mat Min Mat Fac Sto Rec Scr Fac Upp Upp Zhi Pro Fac Was Fac Ext Cet Arc Hub Res Tes Res Qua Frg Maximum Alert Level 4 | . 1 . 2 1 2 1 3 1 . 4 . . . . 1 . 2 2 2 1 3 2 2 3 2 . Low Security (%) 41 | 100 82 100 37 42 34 58 11 2 . 53 . . . . 67 100 87 4 . 72 22 . 16 . . 100 Level 1 37 | . 17 . 27 57 31 41 25 97 . 26 . . . . 32 . 8 72 69 27 6 91 18 36 83 . Level 2 17 | . . . 34 . 33 . 42 . . 8 . . . . . . 4 22 30 . 57 8 64 41 16 . Level 3 3 | . . . . . . . 20 . . 8 . . . . . . . . . . 13 . . 22 . . Level 4 . | . . . . . . . . . . 3 . . . . . . . . . . . . . . . . Level 5 . | . . . . . . . . . . . . . . . . . . . . . . . . . . . High Security . | . . . . . . . . . . . . . . . . . . . . . . . . . . . Max Security . | . . . . . . . . . . . . . . . . . . . . . . . . . . . Peak Influence 1181 | 5 246 178 587 329 588 349 810 359 . 1181 . . . . 266 72 448 589 435 250 749 447 559 971 577 182 Initial 542 | . . 93 . 227 39 123 90 298 . . . . . . . 72 1 217 313 150 . 393 114 305 542 182 Average 261 | . 74 63 303 209 287 202 472 280 . 274 . . . . 122 34 69 333 371 115 482 297 382 521 332 95 Influence Increases 16467 | 5 595 246 1198 284 1185 950 1356 216 . 2012 336 55 . 165 597 . 938 1081 363 260 1223 470 839 1312 736 45 Destroy 0b10 Robot/C 8360 | . 360 120 740 160 680 520 780 60 . 820 200 40 . 120 260 . 520 500 160 80 380 240 520 880 220 . Destroy 0b10 Robot/NC 935 | 5 35 20 80 10 85 115 90 20 . 130 . . . . 20 . 50 35 10 45 105 30 15 30 5 . Destroy Leader 1834 | . 88 20 208 30 184 164 224 . . 170 40 10 . 30 40 . 116 56 . . 112 68 50 174 50 . Allied During Kill 1327 | . . . . . . . . . . 93 96 5 . 15 14 . 110 309 170 125 390 . . . . . Trap Triggered on 0b10 30 | . . . . . . . . . . 30 . . . . . . . . . . . . . . . . Successful Hack 673 | . 35 8 28 . 35 57 26 46 . 37 . . . . . . 11 74 . . 38 30 81 21 146 . Select Force Hacks 340 | . 60 . 60 . 30 . . 90 . . . . . . . . . . . . 100 . . . . . Disable Machine 690 | . 15 30 . . 15 30 165 . . 210 . . . . 15 . 45 15 15 . . . 75 30 30 . Destroy Structure 1108 | . 2 33 52 69 36 4 56 . . 342 . . . . 38 . 86 32 8 10 98 12 8 57 150 15 Partial Spotted 60 | . . . . . . 15 . . . 30 . . . . 15 . . . . . . . . . . . Lose Combat Pursuer 1110 | . . 15 30 15 120 45 15 . . 150 . . . . 195 . . 60 . . . 90 90 120 135 30 Influence Decreases 16462 | 5 355 486 614 765 1016 1023 789 794 188 832 765 576 230 165 390 205 495 966 547 636 474 1016 499 890 1377 364 Entered New Map 4378 | . . 147 . 357 64 149 109 468 188 . 437 144 230 . . 135 1 228 247 226 . 356 89 238 423 142 Time Decay 9306 | 5 355 329 584 398 592 654 470 326 . 576 318 392 . 165 330 50 414 498 230 330 244 510 410 502 434 190 Lost Part 868 | . . 10 30 10 60 70 60 . . 56 10 . . . 20 . 20 80 50 . 10 . . 130 220 32 Lost Ally 710 | . . . . . . . . . . 50 . 40 . . 40 20 60 160 20 80 220 . . 20 . . Purge Threat 1200 | . . . . . 300 150 150 . . 150 . . . . . . . . . . . 150 . . 300 . Squads Dispatched 129 | . 5 1 6 . 7 10 11 . . 21 . . . . 7 . 12 2 . . 5 8 9 13 10 2 Investigation 46 | . 3 1 4 . 3 . 2 . . 9 . . . . 5 . 5 1 . . 3 5 2 1 2 . Extermination 26 | . . . . . . 4 2 . . 5 . . . . 2 . 4 . . . . . 1 4 3 1 Reinforcement 37 | . 2 . 2 . 3 2 6 . . 3 . . . . . . 3 1 . . 2 3 2 5 2 1 Assault 3 | . . . . . 1 . . . . 1 . . . . . . . . . . . . 1 . . . Garrison 17 | . . . . . . 4 1 . . 3 . . . . . . . . . . . . 3 3 3 . Intercept . | . . . . . . . . . . . . . . . . . . . . . . . . . . . Searches Triggered . | . . . . . . . . . . . . . . . . . . . . . . . . . . . Construction Impeded 3 | . . . . . . . 1 . . 1 . . . . . . . . . . . . . . 1 . Haulers Reinforced 11 | . . . . . . 2 5 . . 1 . . . . . . 1 . . . . 2 . . . . Active Scanning Responses . | . . . . . . . . . . . . . . . . . . . . . . . . . . . Cargo Convoy Interrupts . | . . . . . . . . . . . . . . . . . . . . . . . . . . . Stealth | -11 -10 -10 -9 -9 -8 -7 -7 -7 -7 -5 -5 -5 -5 -4 -4 -4 -4 -4 -4 -4 -4 -3 -3 -2 -2 -2 --------- Run | Yrd Mat Min Mat Min Mat Fac Sto Rec Scr Fac Upp Upp Zhi Pro Fac Was Fac Ext Cet Arc Hub Res Tes Res Qua Frg Distress Signals 43 | . 2 . 2 . 1 . 3 . . 9 . . . . . . 2 2 2 . 4 7 . 5 2 2 Communications Jammed . | . . . . . . . . . . . . . . . . . . . . . . . . . . . Distress Signals . | . . . . . . . . . . . . . . . . . . . . . . . . . . . Times Spotted 650 | . 30 15 52 9 57 38 46 2 . 60 10 1 . . 28 6 30 32 10 12 14 23 41 69 40 25 Peak Tracking Total 15 | . 4 4 5 3 5 5 8 1 . 6 4 1 . 1 6 6 5 4 5 2 5 4 6 9 11 15 Tactical Retreats 46 | . . 2 2 1 5 1 1 . . 8 . . . . 5 . . 4 . . . 2 4 4 5 2 Traps | -11 -10 -10 -9 -9 -8 -7 -7 -7 -7 -5 -5 -5 -5 -4 -4 -4 -4 -4 -4 -4 -4 -3 -3 -2 -2 -2 ------- Run | Yrd Mat Min Mat Min Mat Fac Sto Rec Scr Fac Upp Upp Zhi Pro Fac Was Fac Ext Cet Arc Hub Res Tes Res Qua Frg Traps Triggered 23 | . 2 . . . 2 . 1 . . 4 . . . . 2 . 4 2 . . . . 2 3 1 . Indirectly . | . . . . . . . . . . . . . . . . . . . . . . . . . . . Trap Hack Attempts . | . . . . . . . . . . . . . . . . . . . . . . . . . . . Triggered . | . . . . . . . . . . . . . . . . . . . . . . . . . . . Disarmed . | . . . . . . . . . . . . . . . . . . . . . . . . . . . Reprogrammed . | . . . . . . . . . . . . . . . . . . . . . . . . . . . Reused 3 | . . . . . . . . . . 3 . . . . . . . . . . . . . . . . Traps Extracted . | . . . . . . . . . . . . . . . . . . . . . . . . . . . Installed 3 | . . . . . . . . . . 3 . . . . . . . . . . . . . . . . Triggered 3 | . . . . . . . . . . 3 . . . . . . . . . . . . . . . . Most Traps Carried 3 | . . . . . . . . . 3 3 . . . . . . . . . . . . . . . . Machines | -11 -10 -10 -9 -9 -8 -7 -7 -7 -7 -5 -5 -5 -5 -4 -4 -4 -4 -4 -4 -4 -4 -3 -3 -2 -2 -2 ---------- Run | Yrd Mat Min Mat Min Mat Fac Sto Rec Scr Fac Upp Upp Zhi Pro Fac Was Fac Ext Cet Arc Hub Res Tes Res Qua Frg Machines Disabled 48 | . 1 2 . . 1 2 11 . . 14 . . . . 1 . 3 2 1 . . . 6 2 2 . Max in Single Turn 4 | . 1 1 . . 1 1 2 . . 4 . . . . 1 . 1 . 1 . . . 1 1 1 . Garrison Access 7 | . . . . . 1 1 1 . . 1 . . . . 1 . . . . . . 2 . . . . Network Hub 3 | . . . . . . . . . . . . . . . . . . . . . 3 . . . . . Machines Repaired . | . . . . . . . . . . . . . . . . . . . . . . . . . . . Machines Dismantled . | . . . . . . . . . . . . . . . . . . . . . . . . . . . Machines Sabotaged 2 | . . . . . . . . . . . . . . . . . . . . . 2 . . . . . Overloaded Fab Kills . | . . . . . . . . . . . . . . . . . . . . . . . . . . . Hacking | -11 -10 -10 -9 -9 -8 -7 -7 -7 -7 -5 -5 -5 -5 -4 -4 -4 -4 -4 -4 -4 -4 -3 -3 -2 -2 -2 --------- Run | Yrd Mat Min Mat Min Mat Fac Sto Rec Scr Fac Upp Upp Zhi Pro Fac Was Fac Ext Cet Arc Hub Res Tes Res Qua Frg Machines Accessed 166 | . 8 3 12 . 9 13 11 9 4 21 1 1 4 . 8 . 13 11 1 . 5 7 12 4 8 1 Terminals 95 | . 6 1 10 . 7 5 9 6 . 9 . 1 . . . . 7 10 1 . 5 3 6 2 6 1 Fabricators 13 | . . . . . . 4 . . . 3 . . . . 2 . 1 . . . . 1 2 . . . Repair Stations 6 | . . . . . . 1 1 . . 1 . . . . . . . . . . . . 2 . 1 . Recycling Units 27 | . 2 . 2 . 1 . . 3 . 6 . . . . 4 . 4 1 . . . 2 . 2 . . Scanalyzers 4 | . . . . . . 2 . . . . . . . . 1 . . . . . . . 1 . . . Garrison Access 10 | . . . . . 1 1 1 . . 2 . . . . 1 . 1 . . . . 1 1 . 1 . Total Hacks 469 | . 16 5 29 . 25 29 36 14 24 47 1 1 17 . 17 . 33 24 1 . 18 23 56 12 40 1 Successful 246 | . 10 4 8 . 12 16 16 6 24 29 1 1 17 . 11 . 17 10 . . 15 12 19 2 16 . Failed 222 | . 6 1 21 . 13 13 19 8 . 18 . . . . 6 . 16 14 1 . 3 11 37 10 24 1 Catastrophic 47 | . 2 . 2 . 1 4 2 3 . 2 . . . . 2 . 5 1 1 . . 2 7 3 9 1 Database Lockouts 1 | . . . . . . . 1 . . . . . . . . . . . . . . . . . . . Manual 242 | . 11 2 23 . 17 15 23 10 . 33 . . . . 8 . 22 4 1 . 13 11 22 9 17 1 Terminals 298 | . 14 3 26 . 23 12 33 11 . 27 . 1 . . . . 17 23 1 . 18 15 29 7 37 1 Fabricators 45 | . . . . . . 7 . . . 8 . . . . 6 . 6 . . . . 3 15 . . . Repair Stations 12 | . . . . . . 2 1 . . 1 . . . . . . . . . . . . 7 . 1 . Recycling Units 41 | . 2 . 3 . 1 . . 3 . 8 . . . . 7 . 8 1 . . . 3 . 5 . . Scanalyzers 11 | . . . . . . 6 . . . . . . . . 3 . . . . . . . 2 . . . Garrison Access 18 | . . . . . 1 2 2 . . 3 . . . . 1 . 2 . . . . 2 3 . 2 . Terminal Hacks 127 | . 6 3 3 . 8 4 12 1 24 10 1 1 17 . . . 4 7 . . 6 4 6 . 10 . Record 31 | . . . . . . . . . 23 . . 1 5 . . . . . . . . 1 . . 1 . Part Schematic 7 | . . . . . . . . . . 1 . . 4 . . . . 1 . . . . 1 . . . Robot Analysis 7 | . 2 . . . 1 . . . . . . . 4 . . . . . . . . . . . . . Prototype ID Bank 25 | . 2 . 1 . 2 1 5 . . 4 . . 4 . . . 1 . . . 3 . 1 . 1 . Open Door 11 | . . 2 . . . . 3 . . . 1 . . . . . . 4 . . . . 1 . . . Level Access Points 1 | . . . . . . . . . . . . . . . . . . . . . 1 . . . . . Branch Access Points 5 | . . . 1 . 1 1 . . . . . . . . . . . . . . . 1 . . 1 . Machine Index 1 | . . . . . . . . 1 . . . . . . . . . . . . . . . . . . Terminal Index 8 | . . . 1 . . 1 2 . . . . . . . . . 1 1 . . 1 . 1 . . . Alert Level 6 | . . . . . 1 . . . . 1 . . . . . . . . . . . 1 1 . 2 . Unreport Threat 8 | . . . . . 2 1 1 . . 1 . . . . . . . . . . . 1 . . 2 . Locate Traps 1 | . . . . . . . . . . . . . . . . . . . . . . . . . 1 . Patrol Status 3 | . . . . . . . . . . 1 . . . . . . . . . . . . 1 . 1 . Recall Extermination 1 | . . . . . . . . . . . . . . . . . 1 . . . . . . . . . Recall Reinforcements 1 | . . . . . . . . . . 1 . . . . . . . . . . . . . . . . Hauler Manifests 6 | . 1 . . . 1 . 1 . . 1 . . . . . . 1 . . . 1 . . . . . Zone Layout 4 | . 1 1 . . . . . . . . . . . . . . . 1 . . . . . . 1 . Proto ID Catalog 1 | . . . . . . . . . 1 . . . . . . . . . . . . . . . . . Fabricator Hacks 14 | . . . . . . 1 . . . 3 . . . . 3 . 3 . . . . 1 3 . . . Network Status 3 | . . . . . . 1 . . . . . . . . . . 1 . . . . . 1 . . . Load Schematic 7 | . . . . . . . . . . 2 . . . . 2 . 1 . . . . 1 1 . . . Build 4 | . . . . . . . . . . 1 . . . . 1 . 1 . . . . . 1 . . . Repair Station Hacks 4 | . . . . . . 2 . . . . . . . . . . . . . . . . 2 . . . Scan Component 2 | . . . . . . 1 . . . . . . . . . . . . . . . . 1 . . . Repair 2 | . . . . . . 1 . . . . . . . . . . . . . . . . 1 . . . Recycling Unit Hacks . | . . . . . . . . . . . . . . . . . . . . . . . . . . . Scanalyzer 7 | . . . . . . 5 . . . . . . . . 2 . . . . . . . . . . . Insert Component 3 | . . . . . . 2 . . . . . . . . 1 . . . . . . . . . . . Analyze 4 | . . . . . . 3 . . . . . . . . 1 . . . . . . . . . . . Garrison Access Hacks 6 | . . . . . 1 1 1 . . 1 . . . . 1 . . . . . . 1 . . . . Seal Access 6 | . . . . . 1 1 1 . . 1 . . . . 1 . . . . . . 1 . . . . Unauthorized Hacks 88 | . 4 1 5 . 3 3 3 5 . 15 . . . . 5 . 10 3 . . 9 6 8 2 6 . Terminals 45 | . 2 1 3 . 2 1 2 2 . 5 . . . . . . 4 2 . . 9 3 3 1 5 . Track 8 | . . 1 . . . . . . . 2 . . . . . . 2 . . . 2 . 1 . . . Botnet 31 | . 2 . 3 . 2 1 2 2 . 2 . . . . . . 2 2 . . 3 3 2 1 4 . Operators 3 | . . . . . . . . . . 1 . . . . . . . . . . 1 . . . 1 . Sabotage 3 | . . . . . . . . . . . . . . . . . . . . . 3 . . . . . Fabricators 14 | . . . . . . 2 . . . 3 . . . . 1 . 3 . . . . 1 4 . . . Report 3 | . . . . . . 1 . . . 1 . . . . . . . . . . . . 1 . . . Prioritize 2 | . . . . . . . . . . . . . . . . . 1 . . . . . 1 . . . Liberate 4 | . . . . . . . . . . 1 . . . . . . 1 . . . . . 2 . . . Haulers 2 | . . . . . . 1 . . . . . . . . . . 1 . . . . . . . . . Recompile 3 | . . . . . . . . . . 1 . . . . 1 . . . . . . 1 . . . . Repair Stations 4 | . . . . . . . 1 . . 1 . . . . . . . . . . . . 1 . 1 . Patch 4 | . . . . . . . 1 . . 1 . . . . . . . . . . . . 1 . 1 . Recycling Units 25 | . 2 . 2 . 1 . . 3 . 6 . . . . 4 . 3 1 . . . 2 . 1 . . Tunnel 8 | . 2 . 2 . 1 . . 3 . . . . . . . . . . . . . . . . . . Fedlink 15 | . . . . . . . . . . 5 . . . . 4 . 2 1 . . . 2 . 1 . . Scrapoids 2 | . . . . . . . . . . 1 . . . . . . 1 . . . . . . . . . Scanalyzers . | . . . . . . . . . . . . . . . . . . . . . . . . . . . Garrison Access . | . . . . . . . . . . . . . . . . . . . . . . . . . . . Data Cores Recovered 2 | . . . 1 . . . . . . 1 . . . . . . . . . . . . . . . . Used 1 | . . . 1 . . . . . . . . . . . . . . . . . . . . . . . Hacking Detections 115 | . 6 1 11 . 7 12 10 5 . 14 . . . . 4 . 11 7 2 . 3 4 9 3 6 . Full Trace Events 8 | . 1 . 2 . 2 . 1 . . . . . . . . . 1 . . . . . 1 . . . Feedback Events 1 | . . . 1 . . . . . . . . . . . . . . . . . . . . . . . Corruption 1 | . . . 1 . . . . . . . . . . . . . . . . . . . . . . . Feedback Blocked . | . . . . . . . . . . . . . . . . . . . . . . . . . . . Robot Schematics Acquired . | . . . . . . . . . . . . . . . . . . . . . . . . . . . Robots Built . | . . . . . . . . . . . . . . . . . . . . . . . . . . . Authchips . | . . . . . . . . . . . . . . . . . . . . . . . . . . . Time . | . . . . . . . . . . . . . . . . . . . . . . . . . . . Total Robot Build Rating . | . . . . . . . . . . . . . . . . . . . . . . . . . . . Part Schematics Acquired 11 | . . . . . . 1 . . . 1 . . 4 . 1 . . 1 . . . . 3 . . . Parts Built 4 | . . . . . . . . . . 1 . . . . 1 . 1 . . . . . 1 . . . Authchips 4 | . . . . . . . . . . 1 . . . . 1 . 1 . . . . . 1 . . . Time 308 | . . . . . . . . . . 102 . . . . 102 . 53 . . . . . 51 . . . Total Part Build Rating 30 | . . . . . . . . . . 8 . . . . 8 . 6 . . . . . 8 . . . Parts Repaired 2 | . . . . . . 1 . . . . . . . . . . . . . . . . 1 . . . Time 104 | . . . . . . 68 . . . . . . . . . . . . . . . . 36 . . . Parts Recycled . | . . . . . . . . . . . . . . . . . . . . . . . . . . . Recycled Matter . | . . . . . . . . . . . . . . . . . . . . . . . . . . . Retrieved Matter . | . . . . . . . . . . . . . . . . . . . . . . . . . . . Retrieved Components . | . . . . . . . . . . . . . . . . . . . . . . . . . . . Parts Scanalyzed 2 | . . . . . . 1 . . . . . . . . 1 . . . . . . . . . . . Part Schematics Acquired 2 | . . . . . . 1 . . . . . . . . 1 . . . . . . . . . . . Parts Damaged 3 | . . . . . . 2 . . . . . . . . 1 . . . . . . . . . . . Bothacking | -11 -10 -10 -9 -9 -8 -7 -7 -7 -7 -5 -5 -5 -5 -4 -4 -4 -4 -4 -4 -4 -4 -3 -3 -2 -2 -2 ------------ Run | Yrd Mat Min Mat Min Mat Fac Sto Rec Scr Fac Upp Upp Zhi Pro Fac Was Fac Ext Cet Arc Hub Res Tes Res Qua Frg Used RIF Installer . | . . . . . . . . . . . . . . . . . . . . . . . . . . . Robots Hacked 1 | . . . . . . . . . . . . . . . 1 . . . . . . . . . . . Non-combat 1 | . . . . . . . . . . . . . . . 1 . . . . . . . . . . . Combat . | . . . . . . . . . . . . . . . . . . . . . . . . . . . Robot Hacks Applied 1 | . . . . . . . . . . . . . . . 1 . . . . . . . . . . . find_chute 1 | . . . . . . . . . . . . . . . 1 . . . . . . . . . . . Relay Couplers Released 5 | . . . . . . . . . . . . . . . . . . . . . . 2 . . 3 . Machine Destruction 2 | . . . . . . . . . . . . . . . . . . . . . . 2 . . . . Programmers 3 | . . . . . . . . . . . . . . . . . . . . . . . . . 3 . Fabnet Peak Effective % . | . . . . . . . . . . . . . . . . . . . . . . . . . . . Robots Rewired 14 | . . . . . . . . . . . . . . . . . . 14 . . . . . . . . Allies Hacked . | . . . . . . . . . . . . . . . . . . . . . . . . . . . Hacks Repelled . | . . . . . . . . . . . . . . . . . . . . . . . . . . . Allies | -11 -10 -10 -9 -9 -8 -7 -7 -7 -7 -5 -5 -5 -5 -4 -4 -4 -4 -4 -4 -4 -4 -3 -3 -2 -2 -2 -------- Run | Yrd Mat Min Mat Min Mat Fac Sto Rec Scr Fac Upp Upp Zhi Pro Fac Was Fac Ext Cet Arc Hub Res Tes Res Qua Frg Total Allies 40 | . . 1 . . . . . . . 7 . . . . . 1 5 21 5 . . . . . . . Largest Group 18 | . . 1 . . . . . . . 5 4 3 1 1 1 1 5 15 18 18 13 . . . . . Highest-Rated Group 1146 | . . 31 . . . . . . . 241 194 147 41 41 41 46 235 769 1146 1123 843 . . . . . Highest-Rated Ally 159 | . . 31 . . . . . . . 50 53 53 41 41 41 46 47 159 152 130 96 . . . . . Total Orders 21 | . . . . . . . . . . 12 . . . . 2 . 1 . . . . . . 2 4 . STAY 2 | . . . . . . . . . . 1 . . . . 1 . . . . . . . . . . . EXPLORE 16 | . . . . . . . . . . 9 . . . . 1 . 1 . . . . . . 2 3 . RETURN 3 | . . . . . . . . . . 2 . . . . . . . . . . . . . . 1 . Ally Attacks 504 | . . . . . . . . . . 38 44 23 . 2 3 6 59 105 59 39 126 . . . . . Total Damage 14506 | . . . . . . . . . . 632 847 523 . 82 95 83 1291 3291 1523 1062 5077 . . . . . Kills 93 | . . . . . . . . . . 8 6 2 . 1 1 . 11 19 9 4 32 . . . . . Allies Corrupted . | . . . . . . . . . . . . . . . . . . . . . . . . . . . Allies Melted 1 | . . . 1 . . . . . . . . . . . . . . . . . . . . . . . Intel | -11 -10 -10 -9 -9 -8 -7 -7 -7 -7 -5 -5 -5 -5 -4 -4 -4 -4 -4 -4 -4 -4 -3 -3 -2 -2 -2 ------- Run | Yrd Mat Min Mat Min Mat Fac Sto Rec Scr Fac Upp Upp Zhi Pro Fac Was Fac Ext Cet Arc Hub Res Tes Res Qua Frg Active Infowar (turns) 24807 | 38 1069 1012 1985 944 1857 2102 382 . . 3296 613 935 201 678 987 116 1797 1259 366 . 129 1379 861 1354 1075 372 Optics 1449 | . . . . . . . . . . . . . . . . . . . . . . 1378 71 . . . Sensors 14858 | . . . . . . 1482 382 . . 3296 613 935 194 678 932 . 1797 1259 366 . . 2 410 1065 1075 372 Terrain 2634 | . . . . . . . . . . . . 561 198 124 980 116 654 . . . 1 . . . . . Structural 2513 | . . . . . . . . . . . . . . . . . . . . . 128 279 116 1125 865 . Seismic 9189 | 38 1069 1012 1985 944 1857 620 . . . . . . . . . . . . . . . 1214 450 . . . ECM 3 | . . . . . . . . . . . . . . . 1 . . . . . . 2 . . . . Robot Analysis Total 7 | . 2 . . . 1 . . . . . . . 4 . . . . . . . . . . . . . Derelict Logs Recovered 6 | . . 2 . 2 . . . . . . . 1 . 1 . . . . . . . . . . . . Drone Launches 21 | . . . . . . . . . . 10 . . . . 2 . 1 . . . . . . 3 5 . Drone Recoveries 13 | . . . . . . . . . . 7 . . . . . . . . . . . . . 1 5 . Exploration | -11 -10 -10 -9 -9 -8 -7 -7 -7 -7 -5 -5 -5 -5 -4 -4 -4 -4 -4 -4 -4 -4 -3 -3 -2 -2 -2 ------------- Run | Yrd Mat Min Mat Min Mat Fac Sto Rec Scr Fac Upp Upp Zhi Pro Fac Was Fac Ext Cet Arc Hub Res Tes Res Qua Frg Turns Passed 30647 | 82 1069 1013 1985 944 1866 2436 1198 720 2020 3403 719 935 201 686 987 116 1797 1321 493 898 558 1382 990 1354 1075 399 Spaces Moved 18020 | 47 527 541 936 535 871 1130 604 566 1787 1921 541 751 154 523 611 97 1255 754 245 236 307 926 563 680 570 342 Core 372 | 8 . . . . . . . . 279 . . . . . . . . . . 31 . . . . . 54 Treads 4605 | 39 527 541 936 535 871 1130 26 . . . . . . . . . . . . . . . . . . . Legs 13043 | . . . . . . . 578 566 1508 1921 541 751 154 523 611 97 1255 754 245 205 307 926 563 680 570 288 Wheels . | . . . . . . . . . . . . . . . . . . . . . . . . . . . Hover . | . . . . . . . . . . . . . . . . . . . . . . . . . . . Flight . | . . . . . . . . . . . . . . . . . . . . . . . . . . . Fastest Speed 50 | 50 160 160 160 160 160 160 120 120 50 120 120 120 120 120 118 118 110 113 113 113 113 111 108 108 116 50 Average Speed 130 | 141 160 160 160 160 160 162 123 120 109 120 120 120 120 120 121 118 116 117 113 288 117 113 111 125 120 108 Slowest Speed 1450 | 160 160 160 160 160 160 245 190 120 120 190 120 120 120 120 236 118 236 226 226 1450 123 115 216 232 236 120 Overloaded Moves 131 | . . . . . . . . . . . . . . . 6 . 23 22 1 . . . 7 63 9 . Propulsion Burnouts . | . . . . . . . . . . . . . . . . . . . . . . . . . . . Robots Hopped . | . . . . . . . . . . . . . . . . . . . . . . . . . . . Potential Cave-ins 1 | . . . . . . . . . . . . . . . . . . . . . . . . . 1 . Cave-ins Triggered . | . . . . . . . . . . . . . . . . . . . . . . . . . . . Teleports 3 | . . . . . . . . . . . . . . . . . . . . . . . . . 2 1 Exploration Rate (%) 65 | 3 94 92 94 98 74 34 93 97 94 62 73 84 60 91 17 77 31 86 66 80 34 29 62 32 80 20 Regions Visited 26 Branch Regions 16 Pre-discovered Areas 17 | . 2 . 2 . 1 . . 3 5 1 . . 3 . . . . . . . . . . . . . Known Exits Taken 20 | . . . 1 1 . 1 1 1 1 1 1 1 1 1 . . 1 1 1 1 1 1 1 1 1 . Unknown Exits Taken 4 | 1 1 1 . . 1 . . . . . . . . . . . . . . . . . . . . . Scrap Searched 15 | . . 1 . 2 . . . . 4 . 2 4 . 2 . . . . . . . . . . . . Spaces Dug 132 | . . . 8 . 14 . . . . 40 . 2 . . 9 . 8 1 . . 4 6 4 19 14 3 Terrain Destroyed 700 | . . 39 62 80 32 2 51 . . 175 5 2 . 97 20 . 29 1 . . 4 6 4 22 64 5 Melee 54 | . . . . . . . . . . 6 . . . . 9 . 8 1 . . 4 6 4 9 7 . Projectile 160 | . . . . . . . 3 . . 75 5 2 . . . . . . . . . . . 13 57 5 AOE 486 | . . 39 62 80 32 2 48 . . 94 . . . 97 11 . 21 . . . . . . . . . Terrain Rammed . | . . . . . . . . . . . . . . . . . . . . . . . . . . . Walls Destroyed . | . . . . . . . . . . . . . . . . . . . . . . . . . . . Machines Disabled . | . . . . . . . . . . . . . . . . . . . . . . . . . . . Actions | -11 -10 -10 -9 -9 -8 -7 -7 -7 -7 -5 -5 -5 -5 -4 -4 -4 -4 -4 -4 -4 -4 -3 -3 -2 -2 -2 --------- Run | Yrd Mat Min Mat Min Mat Fac Sto Rec Scr Fac Upp Upp Zhi Pro Fac Was Fac Ext Cet Arc Hub Res Tes Res Qua Frg Total 22709 | 56 645 630 1212 583 1135 1472 817 593 1860 2657 588 779 170 574 791 98 1477 1119 446 434 470 1173 822 951 796 361 Wait 2192 | . 29 35 106 9 110 113 37 4 6 431 29 6 . 23 106 . 110 213 170 174 103 111 118 71 78 . Move 17995 | 46 526 540 935 534 870 1129 603 565 1786 1920 540 750 153 522 611 96 1254 753 244 235 306 925 562 679 569 342 Hop . | . . . . . . . . . . . . . . . . . . . . . . . . . . . Pick Up 216 | 1 20 5 13 1 19 18 13 3 27 17 2 3 2 5 8 . 5 3 4 1 7 8 7 10 14 . Fast Attach 255 | 7 1 3 3 3 4 26 16 2 12 34 2 3 7 5 4 1 26 15 4 6 10 25 17 8 10 1 Attach 116 | . . 1 5 1 9 9 10 1 4 11 1 2 1 3 6 . 7 3 2 . 4 4 3 12 14 3 Detach 37 | . . . . . 1 3 2 4 . 5 . 1 . . 4 . 4 1 . . 1 1 5 1 4 . Swap 158 | . 3 9 23 5 6 14 5 1 4 27 1 3 . 3 5 . 1 . 3 . 4 8 12 19 2 . Drop 324 | . 9 5 18 4 15 36 19 6 21 36 3 7 7 7 8 1 18 9 7 4 14 31 24 6 9 . Fire 792 | 2 56 32 108 25 100 114 108 6 . 148 10 4 . 6 2 . 1 9 1 . . 1 . 15 41 3 Melee 513 | . . . . . . 4 . . . 20 . . . . 37 . 51 37 11 14 21 59 74 130 55 . Ram . | . . . . . . . . . . . . . . . . . . . . . . . . . . . Kick 22 | . . . . . . . 4 1 . 5 . . . . . . . . . . . . . . . 12 Crush 10 | . 1 . 1 1 1 6 . . . . . . . . . . . . . . . . . . . . Escape Stasis 4 | . . . . . . . . . . . . . . . . . . 4 . . . . . . . . Rewire 72 | . . . . . . . . . . . . . . . . . . 72 . . . . . . . . Trap 3 | . . . . . . . . . . 3 . . . . . . . . . . . . . . . . Miscellaneous . | . . . . . . . . . . . . . . . . . . . . . . . . . . . Route ------- -11/Scrapyard -10/Materials (discovered 5 exits: *Mat x3 / *Min / [*Sub]) -10/Mines (discovered 2 exits: *Mat x2) -9/Materials (discovered 4 exits: *Mat x3 / *Min) -9/Mines (discovered 2 exits: *Mat x2) -8/Materials (discovered 2 exits: *Fac x2) -7/Factory (discovered 4 exits: *Sto x2 / Low x2) -7/Storage (discovered 2 exits: [*Fac] / *Rec) -7/Recycling (discovered 2 exits: *Fac / *Scr) -7/Scraptown (discovered 2 exits: *Fac x2) -5/Factory (discovered 6 exits: *Fac x4 / *Upp x2) -5/Upper Caves -5/Upper Caves (discovered 2 exits: *Fac / *Zhi) -5/Zhirov -4/Proximity Caves -4/Factory -4/Waste -4/Factory (discovered 2 exits: *Upp / *Ext) -4/Extension (discovered 2 exits: *Res / *Cet) -4/Cetus (discovered 2 exits: *Res / *Arc) -4/Archives (discovered 3 exits: *Res / *Hub x2) -4/Hub_04(d) (discovered 4 exits: *Res x4) -3/Research (discovered 2 exits: *Tes x2) -3/Testing -2/Research (discovered 2 exits: Acc / *Qua) -2/Quarantine (discovered 3 exits: Acc / [*Sec] / *Frg) -2/Protoforge History --------- Turn | Location | Event 8 | -11/Scrapyard | Discovered new exit (range 15) 83 | -11/Scrapyard | Entered Materials 304 | -10/Materials | Build established: Mutant 487 | -10/Materials | Discovered new exit (range 15) 720 | -10/Materials | Discovered new exit (range 9) 904 | -10/Materials | Discovered new exit (range 14) 1069 | -10/Materials | Discovered new exit (range 15) 1142 | -10/Materials | Discovered new exit (range 7) 1152 | -10/Materials | Entered Mines 1194 | -10/Mines | Discovered new exit (range 6) 1332 | -10/Mines | Assembled infested the area 1402 | -10/Mines | Destroyed 7 combat bots 1788 | -10/Mines | Met a Derelict who couldn't figure out how to use a Trap Extractor 1819 | -10/Mines | Received a Mining Laser from a helpful Derelict 1884 | -10/Mines | Received a Rocket Launcher from a helpful Derelict 1902 | -10/Mines | Met a Derelict shopkeep closing up shop 1905 | -10/Mines | Learned location of 1 exit from Materials 1918 | -10/Mines | Learned Materials non-interactive machine intel 1985 | -10/Mines | Found a damaged Exp. Sensor Array with a note attached 1988 | -10/Mines | Found Prototype Device 2042 | -10/Mines | Discovered new exit (range 15) 2165 | -10/Mines | Entered Materials 2165 | -9/Materials | Evolved 2 slots: Propulsion x1, Utility x1 2166 | -9/Materials | Identified exit to Materials 2167 | -9/Materials | Loaded intel: 48 non-interactive machine locations 2298 | -9/Materials | Destroyed 7 combat bots 3350 | -9/Materials | Discovered exit to Materials (range 7) 3728 | -9/Materials | Discovered exit to Materials (range 3) 4099 | -9/Materials | Discovered new exit (range 14) 4131 | -9/Materials | Identified exit to Mines 4150 | -9/Materials | Entered Mines 4191 | -9/Mines | Core integrity fell below 50% 4218 | -9/Mines | Build established: Scavenger-Mutant 4275 | -9/Mines | Discovered exit to Materials (range 15) 4519 | -9/Mines | Found DCF Scrap (11 items) 4557 | -9/Mines | Discovered exit to Materials (range 6) 4560 | -9/Mines | Learned Materials non-interactive machine intel 4691 | -9/Mines | Learned location of 1 exit from Proximity Caves 4790 | -9/Mines | Deemed a non-threat by the Exiles lab entrance 4814 | -9/Mines | Build established: Mutant 4981 | -9/Mines | A weapon hastily lodged in a ceiling crevice suddenly fell to the ground 5094 | -9/Mines | Entered Materials 5094 | -8/Materials | Evolved 2 slots: Propulsion x1, Weapon x1 5095 | -8/Materials | Loaded intel: 42 non-interactive machine locations 5386 | -8/Materials | Build established: Tank 5886 | -8/Materials | Discovered new exit (range 15) 6294 | -8/Materials | First assault squad dispatched 6391 | -8/Materials | Discovered new exit (range 16) 6603 | -8/Materials | Build established: Scavenger-Tank 6960 | -8/Materials | Entered Factory 6960 | -7/Factory | Evolved 2 slots: Propulsion x1, Utility x1 7230 | -7/Factory | Garrison activated, responded to threat 7270 | -7/Factory | Build established: Scavenger-Gunner 7416 | -7/Factory | Garrison activated, responded to threat 7640 | -7/Factory | Lost 3 parts (2n1u) 7786 | -7/Factory | Found Prototype Launcher 7997 | -7/Factory | Build established: Skirmisher 8292 | -7/Factory | Identified Exp. Sensor Array 8358 | -7/Factory | Identified exit to Storage 8358 | -7/Factory | Identified exit to Lower Caves 8625 | -7/Factory | Identified Rocket Array 8626 | -7/Factory | Found Rocket Array 9170 | -7/Factory | Repaired Faulty Exp. Sensor Array 9396 | -7/Factory | Entered Storage 9908 | -7/Storage | Discovered new exit (range 15) 10056 | -7/Storage | Garrison activated, responded to threat 10124 | -7/Storage | Destroyed 8 combat bots 10127 | -7/Storage | Build established: Gunner 10359 | -7/Storage | Core integrity fell below 50% 10543 | -7/Storage | Central database locked down 10591 | -7/Storage | Used back door to open Recycling access 10591 | -7/Storage | Discovered new exit (range 3) 10592 | -7/Storage | Identified exit to Recycling 10594 | -7/Storage | Entered Recycling 10878 | -7/Recycling | Discovered new exit (range 6) 10981 | -7/Recycling | Found Powered Armor 11281 | -7/Recycling | Scanned before Scraplab entrance 11300 | -7/Recycling | Entered Scraplab 11310 | -7/Recycling | Discovered new exit (range 3) 11311 | -7/Recycling | Identified exit to Scraptown 11314 | -7/Recycling | Entered Scraptown 11314 | -7/Scraptown | System corruption cleaned by C-Scrubber 11581 | -7/Scraptown | Discovered new exit (range 7) 11587 | -7/Scraptown | Identified exit to Factory 11672 | -7/Scraptown | Visited Awakened 11703 | -7/Scraptown | Visited Spacefarers 11957 | -7/Scraptown | Visited Comm Corps 11999 | -7/Scraptown | Visited Cyclists 12034 | -7/Scraptown | Visited UFD Registry 12034 | -7/Scraptown | Registered with UFD as "Alphathruster" 12068 | -7/Scraptown | Entered Cyclist Reading Room 12133 | -7/Scraptown | Visited Symbiants 12158 | -7/Scraptown | Visited Fellowship of the Rings 12217 | -7/Scraptown | Visited Scrap Suit Storage 12245 | -7/Scraptown | Visited A0-MCA Data Center 12254 | -7/Scraptown | Given an A+ rating by A0-MCA 12260 | -7/Scraptown | Found A0-MCA's Component Scanner 12298 | -7/Scraptown | Visited Junk Repository 12421 | -7/Scraptown | Discovered exit to Factory (range 5) 12460 | -7/Scraptown | Visited Cartography Club 12508 | -7/Scraptown | Found Surveybot 17 Chip 12592 | -7/Scraptown | Learned location of Upper Caves (-4) 12592 | -7/Scraptown | Learned location of Proximity Caves (-5) 12592 | -7/Scraptown | Learned 12 Materials zone layouts 12592 | -7/Scraptown | Learned 12 Factory zone layouts 12592 | -7/Scraptown | Learned 20 Factory zone layouts 12592 | -7/Scraptown | Learned 24 Factory zone layouts 12592 | -7/Scraptown | Learned 8 Research zone layouts 12592 | -7/Scraptown | Learned 4 Storage zone layouts 12592 | -7/Scraptown | Learned 20 Lower Caves zone layouts 12592 | -7/Scraptown | Learned 8 Upper Caves zone layouts 12592 | -7/Scraptown | Learned 16 Proximity Caves zone layouts 12592 | -7/Scraptown | Learned 4 Armory zone layouts 12592 | -7/Scraptown | Learned Research emergency access door positions 12592 | -7/Scraptown | Learned location of 2 exits from Lower Caves 12592 | -7/Scraptown | Learned location of 3 exits from Proximity Caves 12618 | -7/Scraptown | Found Deep Structural Scanner 12730 | -7/Scraptown | Visited Derelict Rescue Squad 12758 | -7/Scraptown | Visited Research Penetration Think Tank 12948 | -7/Scraptown | Visited Junk Repository 12994 | -7/Scraptown | Visited Science Guys 13033 | -7/Scraptown | Visited Chapter 10 13259 | -7/Scraptown | Met Optimus 13259 | -7/Scraptown | Accepted into 0bPrime 13334 | -7/Scraptown | Entered Factory 13334 | -5/Factory | Evolved 4 slots: Propulsion x1, Utility x3 13335 | -5/Factory | Identified exit to Upper Caves 13336 | -5/Factory | Identified exit to Factory 14071 | -5/Factory | Loaded intel: 8 recycling unit locations 14794 | -5/Factory | Build established: Mutant 14907 | -5/Factory | Fabricated Exp. Sensor Array (x1) 15304 | -5/Factory | Build established: Skirmisher 15424 | -5/Factory | Learned location of Protoforge (-2) 15505 | -5/Factory | Discovered exit to Factory (range 8) 15746 | -5/Factory | Garrison activated, responded to threat 15954 | -5/Factory | System corruption reached 10% 16072 | -5/Factory | Noticed UFD Elites at a Recycling Unit 16334 | -5/Factory | First assault squad dispatched 16556 | -5/Factory | Scrapoid reinforcements arrived 16737 | -5/Factory | Entered Upper Caves 16737 | -5/Upper Caves | Accompanied by 4 allies 17145 | -5/Upper Caves | Build established: Commander-Skirmisher 17414 | -5/Upper Caves | Discovered new exit (range 4) 17419 | -5/Upper Caves | Identified exit to Upper Caves 17456 | -5/Upper Caves | Entered another Upper Caves area 17456 | -5/Upper Caves | Accompanied by 3 allies 17622 | -5/Upper Caves | Discovered exit to Factory (range 16) 17754 | -5/Upper Caves | Build established: Skirmisher 17816 | -5/Upper Caves | Spotted B-75 Beast 17823 | -5/Upper Caves | Allies destroyed B-75 Beast 17927 | -5/Upper Caves | Found DCF Scrap (16 items) 18129 | -5/Upper Caves | Discovered new exit (range 10) 18142 | -5/Upper Caves | Identified exit to Zhirov 18157 | -5/Upper Caves | Encountered a Warlord checkpoint 18250 | -5/Upper Caves | Learned 8 Factory zone layouts 18391 | -5/Upper Caves | Entered Zhirov 18391 | -5/Zhirov | Accompanied by 1 ally 18391 | -5/Zhirov | Discovered new exit (range 3) 18407 | -5/Zhirov | Identified exit to Proximity Caves 18425 | -5/Zhirov | Met Zhirov 18448 | -5/Zhirov | Learned location of Quarantine (-2) 18448 | -5/Zhirov | Learned location of Testing (-3) 18448 | -5/Zhirov | Learned location of Command (-1) 18459 | -5/Zhirov | Zhirov requested help retrieving the SGEMP Prototype 18483 | -5/Zhirov | Found Alien Artifact 18483 | -5/Zhirov | Identified Integrated Reactor 18483 | -5/Zhirov | Installed Integrated Reactor, increased core energy generation (+10) 18501 | -5/Zhirov | Found Alien Artifact 18592 | -5/Zhirov | Entered Proximity Caves 18592 | -4/Proximity Caves | Accompanied by 1 ally 18836 | -4/Proximity Caves | Encountered a Derelict sapper outpost 18883 | -4/Proximity Caves | Learned Research trap positions 19278 | -4/Proximity Caves | Entered Factory 19278 | -4/Factory | Accompanied by 1 ally 19278 | -4/Factory | Evolved 2 slots: Utility x2 19446 | -4/Factory | Fabricated Exp. Sensor Array (x1) 19541 | -4/Factory | Loaded intel: 8 recycling unit locations 19839 | -4/Factory | Discovered new exit (range 15) 20060 | -4/Factory | Build established: Scavenger-Assassin 20265 | -4/Factory | Sucked down chute 20265 | -4/Factory | Entered Waste 20266 | -4/Waste | Met a frightened Derelict 20280 | -4/Waste | EMP discharged 20283 | -4/Waste | Spotted C-40 Crusher 20283 | -4/Waste | Spotted C-40 Crusher 20283 | -4/Waste | Spotted C-40 Crusher 20315 | -4/Waste | Spotted C-40 Crusher 20322 | -4/Waste | Spotted C-40 Crusher 20337 | -4/Waste | Found Prototype Device 20337 | -4/Waste | Identified Exp. Transmission Jammer 20349 | -4/Waste | Spotted C-40 Crusher 20370 | -4/Waste | Discovered new exit (range 10) 20379 | -4/Waste | Identified exit to Factory 20380 | -4/Waste | EMP discharged 20380 | -4/Waste | System corruption reached 10% 20381 | -4/Waste | Entered Factory 20430 | -4/Factory | Loaded intel: 8 recycling unit locations 20460 | -4/Factory | Build established: Gladiator 20474 | -4/Factory | Discovered new exit (range 17) 20585 | -4/Factory | Identified exit to Upper Caves 20938 | -4/Factory | Fabricated Med. Armored Exoskeleton (x1) 20968 | -4/Factory | Discovered new exit (range 12) 21560 | -4/Factory | Found Prototype Processor 21560 | -4/Factory | Identified Exp. Melee Analysis Suite 21950 | -4/Factory | Scrapoid reinforcements arrived 22175 | -4/Factory | Identified exit to Extension 22178 | -4/Factory | Entered Extension 22178 | -4/Extension | Accompanied by 2 allies 22298 | -4/Extension | Rescued a captive Derelict 22299 | -4/Extension | Rescued a captive Derelict 22598 | -4/Extension | Rescued A7 22842 | -4/Extension | Build established: Commander-Gladiator 22993 | -4/Extension | Spotted B-86 Titan 23001 | -4/Extension | Spotted B-86 Titan 23007 | -4/Extension | Allies destroyed B-86 Titan 23032 | -4/Extension | Found Hvy. Reflective Plating 23041 | -4/Extension | Allies destroyed B-86 Titan 23061 | -4/Extension | Lost 4 parts (3u1w) 23067 | -4/Extension | Lost 3 allies 23124 | -4/Extension | Loaded intel: 1 recycling unit location 23265 | -4/Extension | Rescued a captive Derelict 23266 | -4/Extension | Rescued a captive Derelict 23398 | -4/Extension | Rescued a captive Derelict 23400 | -4/Extension | Rescued a captive Derelict 23424 | -4/Extension | Discovered new exit (range 10) 23427 | -4/Extension | Discovered new exit (range 6) 23433 | -4/Extension | Identified exit to Cetus 23436 | -4/Extension | Identified exit to Research 23499 | -4/Extension | Entered Cetus 23499 | -4/Cetus | Accompanied by 15 allies (A7) 23504 | -4/Cetus | Acquired a Cetus Manufacturing Module code from A7 23513 | -4/Cetus | Spotted Cetus Guard 23513 | -4/Cetus | Spotted Cetus Guard 23515 | -4/Cetus | Spotted Cetus Guard 23515 | -4/Cetus | Spotted Cetus Guard 23529 | -4/Cetus | Destroyed Cetus Guard 23535 | -4/Cetus | Allies destroyed Cetus Guard 23535 | -4/Cetus | Allies destroyed Cetus Guard 23539 | -4/Cetus | Allies destroyed Cetus Guard 23672 | -4/Cetus | Started Cetus Manufacturing Module 23685 | -4/Cetus | Escorted A7 to Cetus Mainframe 23697 | -4/Cetus | Manufactured an Enhanced Grunt 23722 | -4/Cetus | Manufactured an Enhanced Grunt 23747 | -4/Cetus | Manufactured an Enhanced Grunt 23772 | -4/Cetus | Manufactured an Enhanced Grunt 23797 | -4/Cetus | Manufactured an Enhanced Grunt 23817 | -4/Cetus | Discovered new exit (range 15) 23837 | -4/Cetus | Spotted Cetus Guard 23837 | -4/Cetus | Spotted Cetus Guard 23839 | -4/Cetus | Spotted Cetus Guard 23840 | -4/Cetus | Spotted Cetus Guard 23845 | -4/Cetus | Discovered exit to Research (range 15) 23854 | -4/Cetus | Allies destroyed Cetus Guard 23855 | -4/Cetus | Allies destroyed Cetus Guard 23859 | -4/Cetus | Allies destroyed Cetus Guard 23869 | -4/Cetus | Destroyed Cetus Guard 23871 | -4/Cetus | Met Revision 17 23896 | -4/Cetus | Lost 4 parts (3u1w) 23921 | -4/Cetus | Identified exit to Archives 23992 | -4/Cetus | Entered Archives 23992 | -4/Archives | Accompanied by 18 allies (A7) 23997 | -4/Archives | Received a hacking code to weaken MAIN.C 24003 | -4/Archives | Extracted ID and sensor layout for unrecognized location from A7's data core 24060 | -4/Archives | Lost 5 allies 24062 | -4/Archives | Discovered exit to Research (range 14) 24085 | -4/Archives | Discovered new exit (range 15) 24143 | -4/Archives | Discovered new exit (range 16) 24777 | -4/Archives | Identified exit to Hub_04(d) 24890 | -4/Archives | Entered Hub_04(d) 24890 | -4/Hub_04(d) | Accompanied by 13 allies 24906 | -4/Hub_04(d) | Discovered exit to Research (range 8) 25044 | -4/Hub_04(d) | Lost 3 allies 25104 | -4/Hub_04(d) | Lost 4 allies 25270 | -4/Hub_04(d) | Network Hub disabled 25270 | -4/Hub_04(d) | Network Hub disabled 25311 | -4/Hub_04(d) | Spotted Lightning 25311 | -4/Hub_04(d) | Spotted Lightning 25311 | -4/Hub_04(d) | Spotted Lightning 25378 | -4/Hub_04(d) | Build established: Scavenger-Gladiator 25432 | -4/Hub_04(d) | Network Hub disabled 25448 | -4/Hub_04(d) | Entered Research 25448 | -3/Research | Evolved 2 slots: Power x1, Utility x1 25450 | -3/Research | Loaded intel: 73 trap records 25470 | -3/Research | Loaded intel: 5 recycling unit locations 25647 | -3/Research | Identified exit to Testing 25648 | -3/Research | Revision forces began assault on 0b10 25757 | -3/Research | Met up with Revision 17++ 26148 | -3/Research | Research terminal network offline 26315 | -3/Research | Found Prototype Device 26315 | -3/Research | Identified Exp. Thermal Defense Suite 26390 | -3/Research | Spotted Striker 26422 | -3/Research | Destroyed Striker 26481 | -3/Research | Spotted Striker 26713 | -3/Research | Spotted Striker 26740 | -3/Research | Lost 3 allies 26830 | -3/Research | Entered Testing 26903 | -3/Testing | Found Prototype Protection 26903 | -3/Testing | Identified SHELL Armor 26949 | -3/Testing | Garrison activated, responded to threat 26968 | -3/Testing | Found Prototype Processor 26968 | -3/Testing | Identified Spectral Analyzer 27099 | -3/Testing | Found Prototype Device 27099 | -3/Testing | Identified Exp. Hardlight Generator 27260 | -3/Testing | Fabricated Exp. Sensor Array (x1) 27330 | -3/Testing | First assault squad dispatched 27343 | -3/Testing | Repaired Enh. Multireflex Exoskeleton 27368 | -3/Testing | Spotted Striker 27372 | -3/Testing | Spotted Striker 27570 | -3/Testing | Found Prototype Energy Gun 27570 | -3/Testing | Identified Tachyon Dispersion Ray 27642 | -3/Testing | Found Prototype Launcher 27642 | -3/Testing | Identified Z-bomb Delivery System 27775 | -3/Testing | Discovered new exit (range 12) 27819 | -3/Testing | Identified exit to Research 27820 | -3/Testing | Entered Research 27820 | -2/Research | Evolved 2 slots: Utility x2 27821 | -2/Research | Identified exit to Access 28094 | -2/Research | Loaded intel: 5 recycling unit locations 28226 | -2/Research | Destroyed 9 combat bots 28361 | -2/Research | Spotted B-90 Cyclops 28444 | -2/Research | Lost 3 parts (1p2u) 28601 | -2/Research | System corruption reached 10% 28778 | -2/Research | Garrison activated, responded to threat 28828 | -2/Research | Lost 4 parts (1p2u1w) 28838 | -2/Research | Discovered new exit (range 31) 28912 | -2/Research | Destroyed 7 combat bots 29014 | -2/Research | System corruption reached 30% 29173 | -2/Research | Identified exit to Quarantine 29174 | -2/Research | Entered Quarantine 29331 | -2/Quarantine | Build established: Scavenger-Assassin 29471 | -2/Quarantine | Garrison activated, responded to threat 29652 | -2/Quarantine | Lost 3 parts (1p2w) 29759 | -2/Quarantine | Lost 3 parts (2p1u) 29786 | -2/Quarantine | Found Alien Artifact 29791 | -2/Quarantine | Found Alien Artifact 29794 | -2/Quarantine | Found Alien Artifact 29796 | -2/Quarantine | Found Alien Artifact 29806 | -2/Quarantine | Identified Transdimensional Reconstructor (x4) 29806 | -2/Quarantine | Warped through subspace 29806 | -2/Quarantine | Discovered exit to Access (range 14) 29838 | -2/Quarantine | Spotted Fortress 29877 | -2/Quarantine | Warped through subspace 30080 | -2/Quarantine | Lost 5 parts (1p2n2u) 30152 | -2/Quarantine | Lost 3 parts (1p2u) 30236 | -2/Quarantine | Core integrity fell below 50% 30243 | -2/Quarantine | Discovered new exit (range 6) 30243 | -2/Quarantine | Discovered new exit (range 7) 30248 | -2/Quarantine | Identified exit to Protoforge 30249 | -2/Quarantine | Entered Protoforge 30254 | -2/Protoforge | Lost 3 parts (1n2w) 30277 | -2/Protoforge | Spotted B-90 Cyclops 30462 | -2/Protoforge | Superfortress began startup sequence 30468 | -2/Protoforge | Spotted Hotshot 30472 | -2/Protoforge | Spotted Hotshot 30486 | -2/Protoforge | Warped through subspace 30495 | -2/Protoforge | Spotted Hotshot 30507 | -2/Protoforge | Build established: Mutant 30574 | -2/Protoforge | Spotted Hotshot 30621 | -2/Protoforge | Released all parts (5) 30623 | -2/Protoforge | Spotted Overlord 30626 | -2/Protoforge | Core integrity fell below 20% 30648 | -2/Protoforge | Destroyed by S-43 Plague with Heavy Machine Gun Last Messages --------------- 30603_ Kicked S-43 Plague out of the way. 30604_ Kicked S-43 Plague. 30605_ System corrupted: Heat flow error (+160). 30606_ Kicked S-43 Plague out of the way. 30612_ SHELL Armor destroyed. 30613_ Enh. Hardcell Cannon destroyed. 30618_ Kicked N-04 Retriever out of the way. 30618_ Quantum Reactor destroyed. 30618_ Imp. Thunder Leg destroyed. 30619_ Penetrated by Slug. 30620_ CW DGNE1FZW81PGIJU5&A3:HB0VADLDTHGF8% 30621_ Released Centrium Leg. 30621_ Released Adv. Sensor Array. 30621_ Released Adv. Signal Interpreter. 30621_ Released Adv. Melee Analysis Suite. 30623_ Penetrated by Slug. 30625_ S-43 Plague destroyed. 30625_ Knocked back. 30627_ Slug penetrates Wall. 30635_ System corrupted: Matter fused (-10). Map ----- +----------------------------------------------------+ | ?????????????????????????????????????????????????? | | ?????????????????????????????????????????????????? | | ?????????????????????????????????????????????????? | | ?????????????????????????????????????????????????? | | ????????????????????????? ???????????????????????? | | ????????????????????????? ???????????????????????? | | ????????????????????????? ???????????????????????? | | ????????????????????????" ???????????????????????? | | ???????????????????????"" ???????????????????????? | | ??????????????????#????"" "??????????????????????? | | ??????????????????? """ "??????????????????????? | | ???????????????????? """ "??????????????????????? | | ????????????????????? """ "??????????????????????? | | ??????????????????????""" "??????????????????????? | | ??????????????????????? ??????????????????????? | | ??????????? ############/##?????????????????????? | | ??????????? k ####################??? | | ?????????? #### | | ?????????? s############## "" | | ?????????? #????????????# T | | ????????????####+###### #????????????# | | ??????????????????????# #????????????# #### | | ??????????????????????# #????????????## ##### | | ??????????????????????# #?????????????# # | | ####??????????????????# #?????????????# # | | #??????????????????# @ #?????????????# + | | #??????????????????# #?????????????# # | | #??????????????????# #?????????????# # | | #??????????????????# #?????????????# # | | #??????????????????# #?????????????# ##### | | #??????????????????# #?????????????# #???# | | #??????????????????# #?????????????# #???# | | #??????????????????#u #?????????????# ##### | | ######?????????????# #?????????????# | | +### #?????????????# #?????????????# | | #?????????????# #?????????????# """"" | | #?????????????# #?????????????# """"" | | """ #?????????????+ +?????????????# """"" | | """" #?????????????# #?????????????# """"" | | """" #?????????????# ###???????????# | | """" #?????????????# ?????????? | | #?????????????# = ??????????? | | """ ############### !%????????????? | | """" ## # #????????????? ##### | | """" + # #?????????????? ?????? | | """" ### # #?????????????????????? | | #?# # #?????????????????????? | | """ #?# # #?????????????????????? | | """" #?#####+#####+## #?????????????????????? | | """" ###### #?????????????????????? | +----------------------------------------------------+ Best States ------------- Heat Dissipation 49 Energy Generation 67 Energy Capacity 600 Matter Stores 300 Matter Capacity 300 Sight Range 20 Robot Scan Range 20 Terrain Scan Range 20 Terrain Scan Density 10 Power Amplification 40 Additional Mass Support 20 EM Shielding 4 Armor Coverage 1125 Resistance: KI 30 Resistance: TH 25 Melee Speed Boost 20 Phase Shifting 15 Evasion (%) 94 Targeting Accuracy 8 Melee Accuracy 20 Recoil Reduction 5 Particle Charging 20 Force Boost 30 Offensive Hacking 26 Defensive Hacking 14 Authchip Count 2 Trap Extractor Capacity 6 Item Schematics ----------------- Exp. Sensor Array | -7/Factory | Scanalyzed Med. Armored Exoskeleton | -5/Factory | Hacked Assault Drone Bay | -5/Zhirov | Free Exp. Heat Sink | -5/Zhirov | Free Exp. Optical Array | -5/Zhirov | Free Imp. Arc Thrower | -5/Zhirov | Free Hyp. Gauss Rifle | -4/Factory | Scanalyzed Lrn. Terrain Scanner | -4/Extension | Hacked Hvy. Regenerative Plating | -3/Testing | Hacked Exp. Thermal Generator | -3/Testing | Archive Exp. Shield Generator | -3/Testing | Archive Robot Schematics ------------------ None Fabricated ------------ Exp. Sensor Array | x1 | -5/Factory | Authchip Exp. Sensor Array | x1 | -4/Factory | Authchip Med. Armored Exoskeleton | x1 | -4/Factory | Authchip Exp. Sensor Array | x1 | -3/Testing | Authchip Repaired ---------- Exp. Sensor Array | 62% | -7/Factory | Broken Enh. Multireflex Exoskeleton | 2% | -3/Testing Alien Tech Used ----------------- Integrated Reactor Transdimensional Reconstructor Achievements -------------- None Challenges ------------ None Game ------ Seed ProtonNeutrinoCloak Manual? 0 Play Time 05:30:59 Cumulative 420.0 hours Start 2025.05.27 @ 18:52:14 End 2025.05.28 @ 21:08:34 Sessions 5 Manual Loads 0 Difficulty Rogue Special Mode None Game No. 96 Rogue 96 Adventurer 0 Explorer 0 Win Type - Total 30 Types 16/1/6/1/1/0/2/2/1/0 Lore% 86 Gallery% 77 Achievement% 81 Wizard Run 0 Options --------- Layout 1 ASCII 0 Keyboard 0 Movement Mouse Keybinds 0 Fullscreen 1 Font 24/Smallcaps Map View 50x35 Zoom Use 0% Tactical HUD 1 Map Filters NONE Filters NONE Steam 1 RUN: 9bac5e35-fa10-4c34-af3f-890f54444945